bitfinex/quotes_BTCUSD_20241111
["timestamp","ask_amount","ask_price","bid_price","bid_amount"]
[1731337663200,0.82364221,82460.0,82459.0,0.122644]
[1731337663447,0.81964221,82460.0,82459.0,0.122644]
[1731337663699,0.81964221,82460.0,82459.0,0.123644]
[1731337663851,0.81564221,82460.0,82459.0,0.128644]
[1731337664050,0.12894221,82460.0,82459.0,0.227644]
[1731337664613,0.12594221,82460.0,82459.0,0.227644]
[1731337664992,0.12594221,82460.0,82459.0,0.229644]
[1731337665448,0.12994221,82460.0,82459.0,0.229644]
[1731337665909,0.83864221,82460.0,82453.0,0.001372]
[1731337666096,0.12594221,82454.0,82453.0,0.001372]
[1731337666339,0.83864221,82454.0,82453.0,0.122653]
[1731337666958,0.83854221,82454.0,82453.0,0.122653]
[1731337667455,0.12129,82447.0,82437.0,0.122676]
[1731337667692,0.81564221,82446.0,82445.0,0.126292]
[1731337667918,0.6897,82451.0,82450.0,0.126285]
[1731337668113,0.6897,82468.0,82461.0,0.126269]
[1731337668320,0.12763221,82462.0,82461.0,0.126269]
[1731337668769,0.12763221,82462.0,82461.0,0.226269]
[1731337668978,0.12763221,82462.0,82461.0,0.221269]
[1731337669190,0.12763221,82462.0,82461.0,0.226269]
[1731337669640,0.12963221,82462.0,82461.0,0.226269]
[1731337670310,0.12963221,82462.0,82461.0,0.227269]
[1731337670491,0.12963221,82462.0,82461.0,0.228269]
[1731337670692,0.12963221,82462.0,82461.0,0.223269]
[1731337670900,0.12963221,82462.0,82461.0,0.228269]
[1731337671323,0.12963221,82462.0,82461.0,0.223269]
[1731337671525,0.12963221,82462.0,82461.0,0.228269]
[1731337671726,0.12963221,82462.0,82461.0,0.123269]
[1731337672279,0.12963221,82462.0,82461.0,0.002]
[1731337672280,0.22973701,82462.0,82461.0,0.002]
[1731337672495,0.84033221,82462.0,82461.0,0.121269]
[1731337672700,0.84033221,82462.0,82461.0,0.122269]
[1731337672960,0.84033221,82462.0,82461.0,0.123269]
[1731337673168,0.81733221,82462.0,82461.0,0.123269]
[1731337673771,0.81733221,82462.0,82461.0,0.228269]
[1731337673906,0.00169,82462.0,82461.0,0.228269]
[1731337674110,0.18171576,82475.0,82474.0,0.22625]
[1731337674340,0.30765797,82475.0,82474.0,0.22625]
[1731337674702,0.12594221,82475.0,82474.0,0.22625]
[1731337675353,0.6897,82486.0,82485.0,0.121234]
[1731337675582,0.18171576,82487.0,82485.0,0.121234]
[1731337675583,0.87141576,82487.0,82486.0,0.126232]
[1731337675791,0.99735797,82487.0,82486.0,0.126232]
[1731337675997,0.81564221,82487.0,82486.0,0.126232]
[1731337676872,0.12594221,82487.0,82486.0,0.226232]
[1731337677201,0.12694221,82487.0,82486.0,0.226232]
[1731337677541,0.001,82487.0,82486.0,0.226232]
[1731337677954,0.12694221,82487.0,82486.0,0.126232]
[1731337678161,0.81764221,82487.0,82486.0,0.121232]
[1731337678375,0.81664221,82487.0,82485.0,0.121233]
[1731337678610,0.18171576,82500.0,82485.0,0.121233]
[1731337678611,0.12594221,82486.0,82485.0,0.121233]
[1731337678837,0.12594221,82486.0,82467.0,0.28171576]
[1731337679070,0.12594221,82486.0,82467.0,0.12126]
[1731337679071,0.12594221,82468.0,82467.0,0.12126]
[1731337679196,0.12594221,82468.0,82461.0,0.005845]
[1731337679197,0.023,82467.0,82461.0,0.000845]
[1731337679395,0.18171576,82481.0,82461.0,0.000845]
[1731337679599,0.7127,82480.0,82470.0,0.121255]
[1731337679807,0.023,82478.0,82469.0,0.121257]
[1731337680061,0.12594221,82470.0,82469.0,0.121257]
[1731337681117,0.12594221,82470.0,82467.0,0.122259]
[1731337681118,0.023,82469.0,82467.0,0.001]
[1731337681350,0.27020121,82468.0,82467.0,0.001]
[1731337681562,0.14894221,82468.0,82467.0,0.001]
[1731337681719,0.14894221,82468.0,82461.0,0.000845]
[1731337682071,0.14894221,82462.0,82461.0,0.000845]
[1731337682308,0.12594221,82462.0,82461.0,0.122114]
[1731337682999,0.12594221,82462.0,82461.0,0.123114]
[1731337683192,0.12584221,82462.0,82461.0,0.122114]
[1731337683409,0.12584221,82462.0,82461.0,0.127114]
[1731337683617,0.13084221,82462.0,82461.0,0.227114]
[1731337683870,0.005,82462.0,82461.0,0.227114]
[1731337684574,0.01,82462.0,82461.0,0.228114]
[1731337684776,0.18171576,82472.0,82471.0,0.126254]
[1731337684991,0.30765797,82472.0,82471.0,0.221254]
[1731337685229,0.12594221,82472.0,82471.0,0.221254]
[1731337685575,0.12594221,82472.0,82471.0,0.226254]
[1731337685822,0.12594221,82472.0,82471.0,0.227254]
[1731337686438,0.12594221,82472.0,82471.0,0.228254]
[1731337686651,0.12594221,82472.0,82471.0,0.229254]
[1731337687091,0.12594221,82472.0,82471.0,0.224254]
[1731337687287,0.12594221,82472.0,82471.0,0.229254]
[1731337687466,0.12763221,82472.0,82471.0,0.229254]
[1731337687662,0.12763221,82472.0,82471.0,0.222254]
[1731337687865,0.12763221,82472.0,82467.0,0.121259]
[1731337688061,0.145943,82472.0,82471.0,0.002]
[1731337688362,0.144267,82462.0,82447.0,0.30300476]
[1731337688605,0.144267,82462.0,82447.0,0.30300376]
[1731337688980,0.144267,82462.0,82448.0,0.121288]
[1731337689112,0.149267,82462.0,82437.0,0.006372]
[1731337689321,0.121279,82455.0,82445.0,0.121292]
[1731337689525,0.121275,82457.0,82441.0,0.121297]
[1731337689761,0.028,82458.0,82441.0,0.121297]
[1731337689967,0.121279,82455.0,82439.0,0.121301]
[1731337690164,0.023,82455.0,82447.0,0.121288]
[1731337690367,0.023,82455.0,82441.0,0.121298]
[1731337690589,0.27022121,82454.0,82437.0,0.001372]
[1731337690787,0.023,82443.0,82437.0,0.001372]
[1731337691143,0.0459,82457.0,82428.0,0.18171576]
[1731337691144,0.023,82434.0,82428.0,0.18171576]
[1731337691266,0.12594221,82429.0,82428.0,0.18171576]
[1731337691513,0.12594221,82429.0,82427.0,0.001372]
[1731337691702,0.023,82434.0,82401.0,0.00743521]
[1731337691703,0.023,82418.0,82417.0,0.000396]
[1731337691927,0.023,82417.0,82404.0,0.005]
[1731337692135,0.6877,82418.0,82405.0,0.121351]
[1731337692480,0.6877,82418.0,82401.0,0.001372]
[1731337692481,0.023,82405.0,82401.0,0.001372]
[1731337692619,0.242658,82421.0,82401.0,0.001372]
[1731337692620,0.18171576,82415.0,82401.0,0.001372]
[1731337692813,0.121344,82410.0,82401.0,0.001372]
[1731337693014,0.023,82404.0,82401.0,0.001372]
[1731337693256,0.18171576,82413.0,82402.0,0.12456014]
[1731337693449,0.70587158,82414.0,82402.0,0.121356]
[1731337693450,0.12594221,82403.0,82402.0,0.121356]
[1731337693661,0.12594221,82403.0,82402.0,0.242712]
[1731337693894,0.01,82418.0,82411.0,0.005]
[1731337694043,0.01,82418.0,82417.0,0.121334]
[1731337694404,0.18671576,82433.0,82423.0,0.121325]
[1731337694569,0.18671576,82433.0,82418.0,0.121332]
[1731337694570,0.121322,82425.0,82411.0,0.005]
[1731337694768,0.005,82425.0,82409.0,0.121345]
[1731337694993,0.121336,82416.0,82395.0,0.001372]
[1731337695194,0.005,82420.0,82395.0,0.001372]
[1731337695441,0.005,82420.0,82398.0,0.121361]
[1731337695745,0.023,82415.0,82407.0,0.121348]
[1731337695879,0.023,82415.0,82409.0,0.121344]
[1731337696077,0.023,82418.0,82410.0,0.121343]
[1731337696306,0.121331,82419.0,82411.0,0.121342]
[1731337696307,0.023,82415.0,82411.0,0.121342]
[1731337696519,0.023,82415.0,82409.0,0.121344]
[1731337696721,0.004,82416.0,82395.0,0.006372]
[1731337696722,0.12594221,82414.0,82413.0,0.12134]
[1731337697475,0.12594221,82414.0,82413.0,0.12634]
[1731337697651,0.12594221,82414.0,82413.0,0.22634]
[1731337697864,0.18171576,82432.0,82431.0,0.121313]
[1731337698090,0.30765797,82432.0,82431.0,0.121313]
[1731337698291,0.99735797,82432.0,82431.0,0.121313]
[1731337698514,0.81564221,82432.0,82431.0,0.121313]
[1731337698732,0.6897,82443.0,82442.0,0.121297]
[1731337698979,0.0541151,82459.0,82447.0,0.12129]
[1731337698980,0.18171576,82448.0,82447.0,0.12129]
[1731337699187,0.00062327,82453.0,82452.0,0.121282]
[1731337699619,0.00062327,82453.0,82452.0,0.126282]
[1731337699811,0.12656548,82453.0,82452.0,0.121282]
[1731337700700,0.12656548,82453.0,82452.0,0.226282]
[1731337701000,2.7e-07,82453.0,82452.0,0.236282]
[1731337701187,2.7e-07,82453.0,82452.0,0.231282]
[1731337701382,2.7e-07,82453.0,82452.0,0.23456711]
[1731337701811,0.18171576,82479.0,82471.0,0.226254]
[1731337702027,0.69139,82472.0,82471.0,0.226254]
[1731337702241,0.69139,82472.0,82471.0,0.22942292]
[1731337702447,0.69139,82472.0,82471.0,0.226254]
[1731337702684,0.69139,82472.0,82471.0,0.221254]
[1731337703044,0.69139,82472.0,82471.0,0.22943182]
[1731337703472,0.69139,82472.0,82471.0,0.22443182]
[1731337703654,0.69139,82472.0,82471.0,0.22943182]
[1731337704234,0.69139,82472.0,82471.0,0.23143182]
[1731337704695,0.69139,82472.0,82471.0,0.22943182]
[1731337705119,0.69139,82472.0,82471.0,0.23143182]
[1731337705345,0.69139,82472.0,82471.0,0.12743182]
[1731337705519,0.69139,82472.0,82471.0,0.12543182]
[1731337705692,0.81733221,82472.0,82471.0,0.12543182]
[1731337705910,0.81733221,82472.0,82471.0,0.12743182]
[1731337706357,0.81733221,82472.0,82471.0,0.13243182]
[1731337706603,0.81733221,82472.0,82471.0,0.23143182]
[1731337707429,0.69139,82472.0,82471.0,0.23143182]
[1731337707631,0.69139,82472.0,82471.0,0.22943182]
[1731337707854,0.69339,82472.0,82471.0,0.22943182]
[1731337708066,0.69339,82472.0,82471.0,0.61759743]
[1731337708339,0.81933221,82472.0,82471.0,0.22443182]
[1731337708734,0.81733221,82472.0,82471.0,0.22943182]
[1731337708944,0.81733221,82472.0,82471.0,0.23143182]
[1731337709193,0.81733221,82472.0,82471.0,0.12643182]
[1731337709826,0.81733221,82472.0,82471.0,0.12443182]
[1731337710567,0.81733221,82472.0,82471.0,0.22943182]
[1731337710766,0.59380823,82492.0,82485.0,0.226234]
[1731337710974,0.18171576,82490.0,82485.0,0.226234]
[1731337711197,0.18171576,82490.0,82485.0,0.22963514]
[1731337711643,0.59380823,82492.0,82485.0,0.22963514]
[1731337711865,1e-06,82486.0,82485.0,0.23963514]
[1731337712635,1e-06,82486.0,82485.0,0.24163514]
[1731337713037,1e-06,82486.0,82485.0,0.24405951]
[1731337713247,0.001694,82511.0,82508.0,0.2262]
[1731337713782,0.001694,82511.0,82508.0,0.22973124]
[1731337713912,1e-06,82511.0,82510.0,0.318797]
[1731337714126,1e-06,82511.0,82510.0,0.70696261]
[1731337714329,1e-06,82511.0,82510.0,0.71048101]
[1731337714685,1e-06,82511.0,82510.0,0.70548101]
[1731337714883,1e-06,82511.0,82510.0,0.3173154]
[1731337715199,1e-06,82511.0,82510.0,0.3183154]
[1731337715357,1e-06,82511.0,82510.0,0.3233154]
[1731337715514,0.18171576,82522.0,82521.0,0.226181]
[1731337715702,0.18171576,82522.0,82521.0,0.61934661]
[1731337715944,0.18171576,82522.0,82521.0,0.61783975]
[1731337716143,0.18171576,82532.0,82531.0,0.126166]
[1731337716345,0.18171576,82548.0,82535.0,0.12616]
[1731337716522,0.18171576,82548.0,82535.0,0.22616]
[1731337716756,0.18171576,82547.0,82535.0,0.23463584]
[1731337717413,0.18171576,82546.0,82535.0,0.23705883]
[1731337717802,0.18171576,82546.0,82535.0,0.23663584]
[1731337718181,0.000687,82555.0,82535.0,0.23463584]
[1731337718548,0.000687,82555.0,82554.0,0.01]
[1731337718549,0.18240276,82555.0,82554.0,0.01]
[1731337718756,0.18171576,82565.0,82564.0,0.01]
[1731337718957,0.000686,82569.0,82568.0,0.231112]
[1731337719158,0.000686,82569.0,82568.0,0.236112]
[1731337719363,0.000686,82569.0,82568.0,0.23933219]
[1731337719706,0.000686,82569.0,82568.0,0.24175407]
[1731337720334,0.000686,82569.0,82568.0,0.22933219]
[1731337720557,0.12662821,82569.0,82568.0,0.22933219]
[1731337720780,0.12662821,82569.0,82568.0,0.22433219]
[1731337720984,0.12662821,82569.0,82568.0,0.12933219]
[1731337721158,0.12662821,82569.0,82568.0,0.23133219]
[1731337721332,0.000686,82569.0,82568.0,0.23533219]
[1731337721529,0.000686,82569.0,82568.0,0.2427541]
[1731337721727,0.000686,82569.0,82568.0,0.2437541]
[1731337722026,0.000686,82569.0,82568.0,0.23133219]
[1731337722436,0.000686,82569.0,82568.0,0.22633219]
[1731337722575,0.000686,82569.0,82568.0,0.13133219]
[1731337722576,0.12662821,82569.0,82568.0,0.13133219]
[1731337722774,1e-06,82569.0,82568.0,0.14233219]
[1731337722993,0.000686,82594.0,82593.0,0.13082112]
[1731337723194,0.000686,82594.0,82593.0,0.126075]
[1731337723811,0.000686,82594.0,82593.0,0.226075]
[1731337724015,0.12662821,82594.0,82593.0,0.121075]
[1731337724223,0.00025388,82591.0,82590.0,0.12108]
[1731337724423,0.12619609,82591.0,82590.0,0.12108]
[1731337725703,0.000686,82594.0,82593.0,0.226075]
[1731337726542,0.12662821,82594.0,82593.0,0.226075]
[1731337726726,0.12662821,82594.0,82593.0,0.126075]
[1731337726915,0.12662821,82594.0,82593.0,0.121075]
[1731337727068,0.12662821,82594.0,82593.0,0.122075]
[1731337727276,0.1395703,82594.0,82587.0,0.121084]
[1731337727497,0.1395703,82594.0,82565.0,0.00474612]
[1731337727498,0.12594221,82590.0,82589.0,0.121081]
[1731337728510,0.12619609,82590.0,82589.0,0.121081]
[1731337728833,0.12619609,82590.0,82589.0,0.126081]
[1731337728834,0.12594221,82590.0,82589.0,0.126081]
[1731337729256,0.12619609,82590.0,82589.0,0.121081]
[1731337730097,0.12719609,82590.0,82589.0,0.121081]
[1731337730215,0.12619609,82590.0,82589.0,0.121081]
[1731337730421,0.12719609,82590.0,82589.0,0.121081]
[1731337730626,0.13094221,82590.0,82589.0,0.126081]
[1731337730856,0.12594221,82590.0,82589.0,0.226081]
[1731337731233,0.12594221,82590.0,82589.0,0.129081]
[1731337731647,0.12619609,82590.0,82589.0,0.123081]
[1731337731847,0.12619609,82590.0,82589.0,0.002]
[1731337732047,0.1388843,82590.0,82589.0,0.003]
[1731337732269,0.12619609,82590.0,82589.0,0.003]
[1731337732480,0.35067609,82590.0,82589.0,0.003]
[1731337732830,0.22959609,82590.0,82589.0,0.003]
[1731337733412,0.07109609,82590.0,82589.0,0.003]
[1731337733425,0.258093,84000.0,82589.0,0.003]
[1731337733994,0.000686,82677.0,82651.0,0.015]
[1731337734012,0.000686,82677.0,82676.0,0.01]
[1731337734242,0.000686,82677.0,82676.0,0.130954]
[1731337734356,0.000686,82677.0,82676.0,0.23970735]
[1731337734532,0.000686,82677.0,82676.0,0.13470735]
[1731337734745,0.000686,82677.0,82676.0,0.23470735]
[1731337734943,0.000686,82677.0,82676.0,0.23970735]
[1731337735164,0.000686,82677.0,82676.0,0.24170735]
[1731337735377,0.7264846,82699.0,82698.0,0.235921]
[1731337735637,0.00169,82719.0,82705.0,0.005]
[1731337735638,0.7264846,82716.0,82705.0,0.005]
[1731337735844,0.7264846,82707.0,82706.0,0.36985221]
[1731337736105,0.7264846,82707.0,82706.0,0.22091]
[1731337736308,0.7264846,82716.0,82709.0,0.120905]
[1731337736507,0.7264846,82716.0,82709.0,0.220905]
[1731337736715,0.00169,82719.0,82709.0,0.220905]
[1731337737646,0.00169,82719.0,82709.0,0.221905]
[1731337737866,0.00169,82719.0,82709.0,0.222905]
[1731337738080,0.00169,82719.0,82709.0,0.37084721]
[1731337738281,0.025,82742.0,82718.0,0.47885286]
[1731337738523,0.025,82742.0,82741.0,0.220859]
[1731337738641,0.18135764,82753.0,82743.0,0.220856]
[1731337738846,0.18135764,82753.0,82752.0,0.120843]
[1731337739073,4.14889729,82755.0,82754.0,0.12084]
[1731337739521,4.2748395,82755.0,82754.0,0.12084]
[1731337739678,4.14889729,82755.0,82754.0,0.12084]
[1731337740108,4.15589729,82755.0,82754.0,0.12184]
[1731337740531,4.15589729,82755.0,82754.0,0.12084]
[1731337740532,4.14889729,82755.0,82754.0,0.12084]
[1731337740741,4.14889729,82755.0,82754.0,0.12284]
[1731337740939,4.14889729,82755.0,82754.0,0.22284]
[1731337741291,4.14889729,82755.0,82754.0,0.22084]
[1731337741493,4.14889729,82755.0,82754.0,0.22284]
[1731337742286,4.14889729,82755.0,82754.0,0.34878221]
[1731337742535,1.14909729,82755.0,82754.0,0.37678221]
[1731337742747,0.0004,82757.0,82756.0,0.220837]
[1731337743147,0.0004,82757.0,82754.0,0.12084]
[1731337743148,0.12634221,82757.0,82754.0,0.002]
[1731337743296,0.25678021,82755.0,82754.0,0.002]
[1731337743508,0.01,82740.0,82739.0,0.18135764]
[1731337743721,0.13594221,82740.0,82739.0,0.13287729]
[1731337743939,0.005,82735.0,82729.0,0.18135764]
[1731337744155,0.13094221,82740.0,82725.0,0.120882]
[1731337744156,0.005,82730.0,82725.0,0.120882]
[1731337744373,0.005,82728.0,82726.0,0.18135764]
[1731337744678,0.12594221,82727.0,82726.0,0.12088]
[1731337744808,0.005,82726.0,82709.0,0.18135764]
[1731337745019,0.12594221,82725.0,82724.0,0.120883]
[1731337745248,0.005,82736.0,82735.0,0.120867]
[1731337745471,0.13094221,82736.0,82712.0,0.120901]
[1731337745682,0.12594221,82735.0,82734.0,0.120869]
[1731337745872,0.12594221,82735.0,82725.0,0.120882]
[1731337745873,0.005,82747.0,82725.0,0.00241753]
[1731337746083,0.005,82755.0,82737.0,0.120864]
[1731337746284,0.005,82755.0,82736.0,0.1]
[1731337746285,0.12594221,82754.0,82753.0,0.120841]
[1731337746846,0.12594221,82754.0,82739.0,0.120861]
[1731337747146,0.12594221,82754.0,82734.0,0.001]
[1731337747147,0.005,82745.0,82742.0,0.18135764]
[1731337747350,0.005,82745.0,82733.0,0.18135764]
[1731337747351,0.12594221,82744.0,82733.0,0.18135764]
[1731337747686,0.005,82727.0,82724.0,0.18135764]
[1731337747802,0.01,82725.0,82724.0,0.18135764]
[1731337748229,0.01,82725.0,82709.0,0.18135764]
[1731337748230,0.13594221,82725.0,82709.0,0.18135764]
[1731337748434,0.005,82716.0,82709.0,0.18135764]
[1731337748633,0.005,82713.0,82709.0,0.18135764]
[1731337748842,0.12594221,82712.0,82708.0,0.120905]
[1731337749047,0.18135764,82730.0,82700.0,0.18135764]
[1731337749048,0.005,82727.0,82724.0,0.120882]
[1731337749257,0.005,82727.0,82725.0,0.120882]
[1731337749258,0.12594221,82726.0,82725.0,0.120882]
[1731337749492,0.005,82734.0,82730.0,0.120873]
[1731337749698,0.005,82734.0,82709.0,0.18135764]
[1731337749699,0.12594221,82733.0,82727.0,0.120878]
[1731337749899,0.12594221,82733.0,82709.0,0.18135764]
[1731337749900,0.005,82730.0,82724.0,0.120882]
[1731337750118,0.005,82730.0,82715.0,0.1]
[1731337750119,0.005,82725.0,82719.0,0.1]
[1731337750332,0.005,82725.0,82709.0,0.18135764]
[1731337750333,0.005,82720.0,82717.0,0.120893]
[1731337750463,0.005,82720.0,82713.0,0.120899]
[1731337750732,0.0025813,82720.0,82709.0,0.18135764]
[1731337750877,0.0025813,82716.0,82692.0,0.18135764]
[1731337751091,0.0025813,82710.0,82702.0,0.120915]
[1731337751470,0.0763,82720.0,82698.0,0.12092]
[1731337751471,0.0025813,82706.0,82698.0,0.12092]
[1731337751672,0.12594221,82705.0,82696.0,0.120924]
[1731337751844,0.12594221,82705.0,82692.0,0.18135764]
[1731337752144,0.12594221,82705.0,82704.0,0.120913]
[1731337752391,0.0024813,82715.0,82714.0,0.120898]
[1731337752586,0.0024813,82714.0,82713.0,0.001]
[1731337752799,0.24932151,82714.0,82713.0,0.001]
[1731337753153,0.0024813,82684.0,82660.0,0.001368]
[1731337753367,0.12842351,82684.0,82660.0,0.001368]
[1731337753703,0.12842351,82684.0,82670.0,0.120962]
[1731337753876,0.0024813,82681.0,82660.0,0.001368]
[1731337754059,0.12594221,82680.0,82675.0,0.18135764]
[1731337754256,0.12594221,82680.0,82679.0,0.120949]
[1731337754458,0.241813,82709.0,82677.0,0.120951]
[1731337754459,0.0024813,82697.0,82683.0,0.001]
[1731337754713,0.0024813,82697.0,82696.0,0.120924]
[1731337754922,0.0024813,82697.0,82695.0,0.120925]
[1731337755065,0.0024813,82686.0,82685.0,0.12094]
[1731337755299,0.0024813,82695.0,82678.0,0.120951]
[1731337755566,0.0024813,82701.0,82685.0,0.18135764]
[1731337755783,0.006,82714.0,82676.0,0.18135764]
[1731337755784,0.0024813,82704.0,82703.0,0.120914]
[1731337755991,0.0024813,82704.0,82700.0,0.120917]
[1731337756259,0.0024813,82704.0,82702.0,0.120915]
[1731337756423,0.0763,82720.0,82711.0,0.120902]
[1731337756424,0.0024813,82712.0,82711.0,0.120902]
[1731337756861,0.0024813,82706.0,82705.0,0.120911]
[1731337757314,0.0024813,82706.0,82695.0,0.120926]
[1731337757315,0.0024813,82698.0,82697.0,0.120922]
[1731337757901,0.0024813,82708.0,82707.0,0.120908]
[1731337758297,0.0024813,82708.0,82688.0,0.241872]
[1731337758515,0.0024813,82708.0,82707.0,0.120908]
[1731337758700,0.0024813,82708.0,82705.0,0.122911]
[1731337758851,0.0024813,82708.0,82707.0,0.120908]
[1731337759342,0.0024813,82708.0,82705.0,0.001]
[1731337759549,0.12594221,82707.0,82706.0,0.22091]
[1731337759760,0.12594221,82707.0,82705.0,0.001]
[1731337759983,0.0024813,82698.0,82696.0,0.120924]
[1731337760234,0.0024813,82698.0,82685.0,0.18135764]
[1731337760235,0.0024813,82698.0,82697.0,0.30228064]
[1731337760436,0.0024813,82698.0,82697.0,0.120923]
[1731337760679,0.1260043,82698.0,82697.0,0.120923]
[1731337760964,0.1260043,82698.0,82696.0,0.120924]
[1731337761163,0.12594221,82697.0,82696.0,0.120924]
[1731337761370,0.12594221,82697.0,82696.0,0.121924]
[1731337761575,0.12594221,82697.0,82696.0,0.120924]
[1731337761787,0.12594221,82697.0,82696.0,0.121924]
[1731337762193,0.12594221,82697.0,82696.0,0.120924]
[1731337762424,0.005,82713.0,82685.0,0.18135764]
[1731337762425,0.005,82713.0,82693.0,0.1]
[1731337762636,0.18135764,82706.0,82705.0,0.120911]
[1731337762835,0.12594221,82706.0,82705.0,0.120911]
[1731337763247,0.12594221,82706.0,82697.0,0.001]
[1731337763248,0.12594221,82706.0,82696.0,0.001]
[1731337763474,0.2468,82713.0,82696.0,0.001]
[1731337763475,0.12594221,82701.0,82696.0,0.001]
[1731337763783,0.13094221,82701.0,82696.0,0.001]
[1731337763894,0.12594221,82701.0,82696.0,0.001]
[1731337764103,0.13094221,82701.0,82696.0,0.001]
[1731337764306,0.13094221,82701.0,82699.0,0.12092]
[1731337764509,0.13094221,82701.0,82683.0,0.000842]
[1731337764725,0.13094221,82701.0,82698.0,0.241841]
[1731337764927,0.13094221,82701.0,82698.0,0.12092]
[1731337765338,0.13094221,82701.0,82699.0,0.120919]
[1731337765803,0.13094221,82701.0,82700.0,0.120918]
[1731337766004,0.13094221,82701.0,82696.0,0.001]
[1731337766005,0.12594221,82701.0,82696.0,0.121924]
[1731337766217,0.12594221,82701.0,82696.0,0.120924]
[1731337766386,0.12794221,82701.0,82698.0,0.120921]
[1731337766626,0.12894221,82701.0,82698.0,0.12092]
[1731337766984,0.12894221,82701.0,82696.0,0.120924]
[1731337766985,0.12694221,82701.0,82696.0,0.120924]
[1731337767033,0.12694221,82701.0,82698.0,0.18135764]
[1731337767034,0.12994221,82701.0,82698.0,0.18135764]
[1731337767212,0.004,82701.0,82700.0,0.120918]
[1731337767458,0.004,82701.0,82700.0,0.220918]
[1731337767659,0.003,82701.0,82700.0,0.220918]
[1731337767867,0.18135764,82716.0,82715.0,0.120897]
[1731337768152,0.30729985,82716.0,82715.0,0.120897]
[1731337768388,0.12594221,82716.0,82715.0,0.120897]
[1731337769435,0.17986972,82731.0,82730.0,0.120875]
[1731337769613,0.302,82731.0,82730.0,0.220875]
[1731337769865,0.42794221,82731.0,82730.0,0.220875]
[1731337770719,0.4395239,82731.0,82730.0,0.221875]
[1731337770926,0.4255239,82731.0,82730.0,0.120875]
[1731337771130,0.4365239,82731.0,82730.0,0.121875]
[1731337771331,0.45899388,82731.0,82730.0,0.122875]
[1731337771652,0.45301009,82731.0,82730.0,0.001]
[1731337771860,0.58512713,82731.0,82730.0,0.002]
[1731337772057,0.53512713,82731.0,82730.0,0.002]
[1731337772465,0.005,82723.0,82722.0,0.120886]
[1731337772712,0.1484284,82723.0,82717.0,0.120894]
[1731337772913,0.1484284,82723.0,82715.0,0.18135764]
[1731337772914,0.1484284,82722.0,82715.0,0.09725164]
[1731337773091,0.02248619,82721.0,82719.0,0.12089]
[1731337773267,0.1484284,82720.0,82719.0,0.12089]
[1731337773640,0.14846929,82720.0,82718.0,0.120892]
[1731337773849,0.26936129,82719.0,82707.0,0.241816]
[1731337773987,0.001,82723.0,82714.0,0.18135764]
[1731337774206,0.002,82750.0,82714.0,0.18135764]
[1731337774207,0.26058169,82731.0,82730.0,0.220875]
[1731337774752,0.24958169,82731.0,82730.0,0.220875]
[1731337774940,0.24958169,82731.0,82730.0,0.57672786]
[1731337775150,0.0004,82757.0,82754.0,0.12084]
[1731337775307,0.02419792,82755.0,82754.0,0.12084]
[1731337775506,0.001688,82755.0,82754.0,0.12084]
[1731337775976,0.001688,82755.0,82754.0,0.22325682]
[1731337776166,0.001688,82755.0,82754.0,0.22084]
[1731337776386,1e-06,82757.0,82756.0,0.248837]
[1731337776512,1e-06,82757.0,82756.0,0.220837]
[1731337777132,1e-06,82757.0,82756.0,0.22577491]
[1731337777536,1e-06,82757.0,82756.0,0.22677491]
[1731337777738,1e-06,82757.0,82756.0,0.22787446]
[1731337778159,1e-06,82757.0,82756.0,0.22887446]
[1731337779087,1e-06,82757.0,82756.0,0.22787446]
[1731337779635,1e-06,82757.0,82756.0,0.22887446]
[1731337780204,1e-06,82757.0,82756.0,0.22787446]
[1731337780362,1e-06,82757.0,82756.0,0.222837]
[1731337780563,0.0138622,82765.0,82756.0,0.222837]
[1731337780564,0.01213101,82765.0,82757.0,0.1]
[1731337780766,0.01213101,82765.0,82764.0,0.1]
[1731337780968,0.01213101,82765.0,82764.0,0.120825]
[1731337781184,5.71359306,82770.0,82764.0,0.120825]
[1731337781185,5.63072407,82770.0,82764.0,0.120825]
[1731337781351,5.63072407,82770.0,82760.0,0.12083]
[1731337781352,5.63072407,82770.0,82761.0,0.120829]
[1731337781549,5.63072407,82770.0,82760.0,0.12083]
[1731337781748,5.75154007,82770.0,82760.0,0.24166]
[1731337782019,5.63072407,82770.0,82757.0,0.001]
[1731337782172,0.12594221,82769.0,82762.0,0.120827]
[1731337782380,0.12594221,82769.0,82760.0,0.12083]
[1731337782583,0.12594221,82769.0,82767.0,0.12082]
[1731337782995,0.12594221,82769.0,82761.0,0.001]
[1731337783170,0.120822,82767.0,82761.0,0.001]
[1731337783370,0.12594221,82766.0,82761.0,0.001]
[1731337783645,0.12594221,82766.0,82762.0,0.120827]
[1731337783862,0.12594221,82766.0,82765.0,0.30218164]
[1731337784093,0.12594221,82766.0,82765.0,0.120824]
[1731337784326,0.12594221,82766.0,82762.0,0.001]
[1731337784522,0.12594221,82766.0,82762.0,0.120827]
[1731337784672,0.12594221,82766.0,82761.0,0.001]
[1731337784879,0.12594221,82766.0,82762.0,0.001]
[1731337785280,0.12594221,82766.0,82761.0,0.001]
[1731337785630,0.120824,82765.0,82762.0,0.001]
[1731337785835,0.12594221,82764.0,82762.0,0.001]
[1731337785950,0.12594221,82764.0,82762.0,0.002]
[1731337786153,0.12594221,82764.0,82762.0,0.121827]
[1731337786372,0.12594221,82764.0,82763.0,0.120826]
[1731337786569,0.12594221,82764.0,82762.0,0.001]
[1731337786774,0.12594221,82764.0,82758.0,0.120834]
[1731337787045,0.12594221,82764.0,82747.0,0.005]
[1731337787336,0.12594221,82764.0,82720.0,0.5372105]
[1731337787337,0.120845,82751.0,82746.0,0.18135764]
[1731337787576,0.005,82762.0,82746.0,0.18135764]
[1731337787577,0.12594221,82750.0,82746.0,0.18135764]
[1731337787696,0.12594221,82750.0,82749.0,0.120847]
[1731337788302,0.0817,82763.0,82762.0,0.120828]
[1731337788718,0.0817,82763.0,82762.0,0.121828]
[1731337788719,0.12594221,82763.0,82762.0,0.121828]